bitfinex-derivatives/quotes_SOLF0:USTF0_20241230
["timestamp","ask_amount","ask_price","bid_price","bid_amount"]
[1735547188987,2.98,193.77,193.67,3.0425]
[1735547189186,12.81646369,193.78,193.67,15.85896369]
[1735547189376,21.52016913,193.8,193.67,15.85896369]
[1735547189581,21.52016913,193.8,193.71,2.5855]
[1735547189781,21.52016913,193.8,193.71,5.5655]
[1735547190382,8.20129616,193.78,193.71,13.76679616]
[1735547190583,8.20129616,193.78,193.71,11.18129616]
[1735547193387,8.20129616,193.76,193.71,2.98]
[1735547193589,8.20129616,193.74,193.67,14.22379616]
[1735547195988,8.20129616,193.74,193.67,6.0225]
[1735547196188,8.20129616,193.74,193.67,14.22379616]
[1735547199292,8.20129616,193.74,193.67,2.98]
[1735547200495,8.20129616,193.74,193.68,8.20129616]
[1735547200995,8.20129616,193.76,193.68,8.20129616]
[1735547201296,8.20129616,193.76,193.7,8.20129616]
[1735547202196,8.20129616,193.78,193.7,8.20129616]
[1735547202397,8.20129616,193.78,193.72,8.20129616]
[1735547202595,8.20129616,193.78,193.73,2.5853]
[1735547203493,21.52016913,193.86,193.76,10.78629616]
[1735547203698,8.20129616,193.84,193.78,8.20129616]
[1735547204099,21.52016913,193.86,193.78,8.20129616]
[1735547204493,8.20129616,193.86,193.78,9.67479616]
[1735547205301,8.20129616,193.86,193.8,8.20129616]
[1735547205900,8.20129616,193.86,193.8,10.78569616]
[1735547206094,8.20129616,193.88,193.8,8.20129616]
[1735547206494,2.98,193.92,193.82,8.20129616]
[1735547206701,8.20129616,193.89,193.82,11.18129616]
[1735547207200,36.89080403,193.93,193.82,11.18129616]
[1735547207401,8.20129616,193.9,193.82,11.18129616]
[1735547207798,36.89080403,193.93,193.82,11.18129616]
[1735547207998,8.20129616,193.91,193.84,8.20129616]
[1735547208300,15.16572381,193.94,193.82,2.98]
[1735547208607,0.78192032,193.93,193.82,2.98]
[1735547209305,0.78192032,193.93,193.84,2.5839]
[1735547209597,0.78192032,193.93,193.85,3.0412]
[1735547209991,15.16572381,193.94,193.85,3.0412]
[1735547210197,12.79781667,193.94,193.85,5.6249]
[1735547210596,12.79781667,193.94,193.86,1.5813]
[1735547210803,12.79781667,193.94,193.87,2.98]
[1735547211704,12.79781667,193.94,193.84,2.98]
[1735547212002,0.78181135,193.93,193.84,2.98]
[1735547214903,12.79781667,193.94,193.84,2.98]
[1735547215305,12.79781667,193.94,193.86,2.5836]
[1735547215613,12.79781667,193.94,193.85,3.0806]
[1735547217503,12.79781667,193.94,193.85,5.6644]
[1735547218306,12.79781667,193.94,193.86,2.5836]
[1735547219004,12.79781667,193.97,193.87,2.5835]
[1735547219206,0.78171347,193.96,193.85,3.0806]
[1735547219506,12.79781667,193.97,193.85,3.0806]
[1735547220404,12.79781667,193.97,193.86,2.5836]
[1735547221303,12.79781667,193.97,193.86,12.79781667]
[1735547221503,12.79781667,194.0,193.86,12.79781667]
[1735547221708,0.78162791,193.99,193.86,12.79781667]
[1735547222105,12.79781667,194.04,193.92,12.79781667]
[1735547222309,0.78148654,194.03,193.93,7.6509]
[1735547222706,12.79781667,194.04,193.93,7.6509]
[1735547223010,0.78141227,194.03,193.93,7.6509]
[1735547223304,21.52016913,194.07,193.95,12.79781667]
[1735547223610,12.79781667,194.1,193.95,12.79781667]
[1735547223812,0.78118114,194.09,193.99,2.5819]
[1735547223999,0.78118114,194.09,194.0,2.98]
[1735547225004,12.79781667,194.07,194.0,2.98]
[1735547228312,12.79781667,194.07,193.93,17.46871667]
[1735547228508,12.79781667,194.04,193.94,2.98]
[1735547231011,12.79781667,194.07,193.94,15.77781667]
[1735547231518,12.79781667,194.04,193.94,2.98]
[1735547234220,12.79781667,194.04,193.93,4.6709]
[1735547234420,12.79781667,194.04,193.94,2.98]
[1735547235518,12.79781667,194.04,193.94,18.36041667]
[1735547235818,12.79781667,194.07,193.94,15.77781667]
[1735547236019,0.78137829,194.06,193.94,15.77781667]
[1735547236215,12.79781667,194.07,193.96,2.5823]
[1735547236419,12.79781667,194.08,193.94,15.77781667]
[1735547236619,0.78132392,194.07,193.94,15.77781667]
[1735547237418,0.78132392,194.07,193.95,2.5824]
[1735547237818,0.78132392,194.07,193.96,2.98]
[1735547238219,12.79781667,194.08,193.96,5.5623]
[1735547239616,12.79781667,194.08,193.96,2.98]
[1735547241323,0.78130633,194.07,193.96,2.98]
[1735547241822,0.78130633,194.07,193.94,15.77781667]
[1735547243723,12.79781667,194.05,193.94,15.77781667]
[1735547244229,8.18143373,194.02,193.95,8.18143373]
[1735547248332,8.18143373,194.0,193.93,14.30323373]
[1735547255531,8.18143373,194.03,193.95,8.18143373]
[1735547256527,2.98,194.07,193.97,8.18143373]
[1735547256834,8.18143373,194.04,193.97,8.18143373]
[1735547257527,8.18143373,194.06,193.99,8.18143373]
[1735547258329,8.18143373,194.04,193.99,8.18143373]
[1735547262438,29.70160286,194.06,193.99,8.18143373]
[1735547262635,0.78130875,194.05,193.99,8.18143373]
[1735547263435,29.70160286,194.06,193.99,8.18143373]
[1735547263935,8.18143373,194.06,193.99,8.18143373]
[1735547264239,29.70160286,194.07,193.99,8.18143373]
[1735547264437,8.18143373,194.01,193.98,2.582]
[1735547264640,24.50016913,194.07,193.94,1.4533]
[1735547264836,8.18143373,194.0,193.94,1.4533]
[1735547265339,8.18143373,194.0,193.93,3.1418]
[1735547266040,8.18143373,193.98,193.93,3.1418]
[1735547267039,8.18143373,193.96,193.89,11.16143373]
[1735547268644,8.18143373,193.94,193.89,2.98]
[1735547271439,8.18143373,193.94,193.88,9.75013373]
[1735547271940,8.18143373,193.9,193.84,3.0374]
[1735547272341,8.18143373,193.86,193.77,7.11291796]
[1735547272535,8.18143373,193.79,193.77,7.11291796]
[1735547273143,8.18143373,193.79,193.76,21.33875388]
[1735547273340,8.18143373,193.77,193.76,20.57640388]
[1735547273541,8.18143373,193.77,193.72,13.92215869]
[1735547273745,8.18143373,193.73,193.72,13.92215869]
[1735547274342,2.98,193.74,193.72,13.92215869]
[1735547274542,2.98,193.74,193.63,24.63270388]
[1735547274849,2.98,193.74,193.63,16.87686627]
[1735547275547,12.82056627,193.73,193.63,1.4697]
[1735547277049,2.98,193.72,193.63,1.4697]
[1735547278550,12.82056627,193.71,193.63,1.4697]
[1735547279444,12.82056627,193.68,193.59,1.4647]
[1735547279646,2.98,193.67,193.59,1.4647]
[1735547280746,12.82056627,193.65,193.53,2.588]
[1735547280949,12.82056627,193.65,193.54,3.0375]
[1735547281947,12.82056627,193.62,193.51,1.5172]
[1735547282154,2.98,193.61,193.51,1.5172]
[1735547282958,12.82056627,193.59,193.51,1.5172]
[1735547285559,12.82056627,193.59,193.51,4.1054]
[1735547285755,2.98,193.6,193.51,1.5172]
[1735547286062,15.80056627,193.62,193.51,1.5172]
[1735547286760,15.80056627,193.62,193.51,4.1055]
[1735547287157,15.80056627,193.62,193.51,1.5172]
[1735547287358,12.82056627,193.59,193.51,1.5172]
[1735547287961,2.98,193.6,193.51,1.5172]
[1735547288365,12.82056627,193.59,193.51,1.5172]
[1735547288753,12.82056627,193.56,193.51,1.5172]
[1735547289059,12.82056627,193.56,193.49,1.5759]
[1735547289060,2.98,193.55,193.49,1.5759]
[1735547289263,12.82056627,193.53,193.44,3.1045]
[1735547290057,12.82056627,193.53,193.37,2.98]
[1735547290253,12.82056627,193.53,193.38,14.41316627]
[1735547290854,12.82056627,193.53,193.42,2.5895]
[1735547291062,12.82056627,193.7,193.44,12.82056627]
[1735547291261,12.82056627,193.7,193.45,1.5394]
[1735547291262,12.82056627,193.57,193.45,1.5394]
[1735547291459,12.82056627,193.57,193.46,1.5977]
[1735547291662,2.98,193.58,193.47,12.82056627]
[1735547291863,2.98,193.59,193.48,1.505]
[1735547292062,2.98,193.59,193.49,2.5885]
[1735547294855,2.98,193.59,193.5,2.5884]
[1735547296367,12.82056627,193.58,193.48,1.505]
[1735547297456,12.82056627,193.55,193.46,1.5977]
[1735547297657,3.06,193.54,193.46,1.5977]
[1735547297865,12.82056627,193.52,193.46,1.5977]
[1735547298370,15.88056627,193.52,193.46,1.5977]
[1735547298568,15.88056627,193.52,193.43,2.5894]
[1735547298868,15.88056627,193.52,193.38,15.88056627]
[1735547299060,15.88056627,193.52,193.45,2.5891]
[1735547299367,15.88056627,193.52,193.41,12.82056627]
[1735547300469,15.88056627,193.52,193.46,2.589]
[1735547301069,15.88056627,193.52,193.41,12.82056627]
[1735547302667,3.06,193.52,193.41,12.82056627]
[1735547303866,15.88056627,193.52,193.41,12.82056627]
[1735547304368,15.88056627,193.52,193.39,3.06]
[1735547304567,15.88056627,193.52,193.42,2.5894]
[1735547306069,12.82056627,193.52,193.42,2.5894]
[1735547306268,3.06,193.51,193.42,2.5894]
[1735547306967,3.06,193.51,193.43,2.5894]
[1735547308666,12.82056627,193.52,193.47,2.5888]
[1735547308864,3.06,193.52,193.47,2.5888]
[1735547310268,37.02016913,193.69,193.47,2.5888]
[1735547310468,12.82056627,193.57,193.44,15.88056627]
[1735547310673,15.88056627,193.57,193.45,3.204]
[1735547310874,15.88056627,193.57,193.5,2.5883]
[1735547312870,15.88056627,193.57,193.46,1.5676]
[1735547313071,15.88056627,193.6,193.47,12.82056627]
[1735547313778,15.88056627,193.6,193.54,2.5878]
[1735547315479,12.82056627,193.6,193.54,2.5878]
[1735547315684,12.82056627,193.6,193.55,2.5877]
[1735547318584,12.82056627,193.6,193.56,2.5876]
[1735547318979,53.8,193.7,193.56,2.5876]
[1735547319185,12.82056627,193.64,193.56,2.5876]
[1735547319980,12.82056627,193.64,193.57,2.5875]
[1735547321286,12.82056627,193.64,193.53,12.82056627]
[1735547321490,12.82056627,193.64,193.54,7.7188]
[1735547321888,12.82056627,193.64,193.59,2.5871]
[1735547323192,12.82056627,193.64,193.58,2.5874]
[1735547323494,12.82056627,193.64,193.54,7.7188]
[1735547323887,12.82056627,193.64,193.57,2.5875]
[1735547326096,12.82056627,193.64,193.54,4.6588]
[1735547326394,12.82056627,193.61,193.54,3.0637]
[1735547326792,15.88056627,193.61,193.54,1.5196]
[1735547327102,15.88056627,193.61,193.51,2.5883]
[1735547327390,12.82056627,193.58,193.51,2.5883]
[1735547330689,12.82056627,193.58,193.52,2.5881]
[1735547331992,12.82056627,193.58,193.53,2.588]
[1735547334791,12.82056627,193.58,193.48,1.4709]
[1735547336409,12.82056627,193.58,193.51,2.5883]
[1735547341604,12.82056627,193.58,193.48,1.4709]
[1735547342401,12.82056627,193.58,193.53,2.588]
[1735547342906,12.82056627,193.61,193.48,1.4709]
[1735547343112,12.82056627,193.61,193.5,12.82056627]
[1735547343799,12.82056627,193.61,193.48,1.4709]
[1735547344003,12.82056627,193.58,193.48,1.4709]
[1735547345502,12.82056627,193.58,193.49,2.5885]
[1735547346414,12.82056627,193.58,193.5,2.5884]
[1735547349214,12.82056627,193.58,193.48,1.4709]
[1735547349415,12.82056627,193.58,193.51,2.5883]
[1735547349715,12.82056627,193.58,193.48,1.4709]
[1735547349917,12.82056627,193.58,193.51,2.5883]
[1735547350315,8.22003815,193.55,193.48,9.69093815]
[1735547351218,8.22003815,193.55,193.51,2.5883]
[1735547354620,8.22003815,193.55,193.48,9.69093815]
[1735547354812,8.22003815,193.55,193.53,2.588]
[1735547355014,8.22003815,193.57,193.53,2.588]
[1735547361518,8.22003815,193.55,193.48,9.69093815]
[1735547361923,8.22003815,193.55,193.5,2.5883]
[1735547366721,8.22003815,193.55,193.49,2.5886]
[1735547367922,8.22003815,193.55,193.46,1.5446]
[1735547367923,8.22003815,193.51,193.44,2.5892]
[1735547368228,8.22003815,193.49,193.42,56.2685646]
[1735547368413,8.22003815,193.47,193.42,56.2685646]
[1735547368923,8.22003815,193.49,193.42,56.2685646]
[1735547369120,8.22003815,193.49,193.42,45.06852645]
[1735547369425,8.22003815,193.43,193.39,2.5899]
[1735547372625,8.22003815,193.43,193.38,2.59]
[1735547373125,8.22003815,193.39,193.29,2.98]
[1735547373324,8.22003815,193.36,193.3,8.22003815]
[1735547375421,8.22003815,193.36,193.33,2.5907]
[1735547376824,8.22003815,193.36,193.3,8.22003815]
[1735547378523,2.98,193.43,193.3,8.22003815]
[1735547378721,8.22003815,193.36,193.3,8.22003815]
[1735547379530,8.22003815,193.36,193.32,2.5909]
[1735547380330,8.22003815,193.36,193.34,2.5906]
[1735547380927,8.22003815,193.38,193.34,2.5906]
[1735547384229,8.22003815,193.38,193.33,8.22003815]
[1735547384430,8.22003815,193.4,193.33,8.22003815]
[1735547384827,8.22003815,193.4,193.38,2.5899]
[1735547385929,8.22003815,193.4,193.37,2.5902]
[1735547386420,8.22003815,193.38,193.31,8.22003815]
[1735547388031,8.22003815,193.38,193.34,2.5905]
[1735547392332,8.22003815,193.38,193.31,8.22003815]
[1735547392527,8.22003815,193.34,193.3,3.1041]
[1735547392731,8.22003815,193.34,193.27,11.22003815]
[1735547392934,8.22003815,193.32,193.28,2.5914]
[1735547394432,8.22003815,193.32,193.29,2.5913]
[1735547401134,8.22003815,193.32,193.28,2.5914]
[1735547403237,8.22003815,193.32,193.25,8.22003815]
[1735547403939,8.22003815,193.32,193.29,2.5912]
[1735547405341,21.52016913,193.43,193.31,2.591]
[1735547405538,3.0,193.42,193.29,8.22003815]
[1735547405744,8.22003815,193.36,193.29,8.22003815]
[1735547407243,8.22003815,193.34,193.28,3.0]
[1735547407838,8.22003815,193.34,193.29,8.22003815]
[1735547408038,8.22003815,193.36,193.29,8.22003815]
[1735547409645,8.22003815,193.34,193.29,8.22003815]
[1735547410045,8.22003815,193.34,193.28,3.0]
[1735547410344,8.22003815,193.34,193.3,2.5911]
[1735547412443,8.22003815,193.34,193.27,8.22003815]
[1735547412642,8.22003815,193.32,193.25,8.22003815]
[1735547413348,8.22003815,193.32,193.27,2.5915]
[1735547413943,21.52016913,193.4,193.25,8.22003815]
[1735547414150,8.22003815,193.33,193.29,2.5912]
[1735547414348,8.22003815,193.33,193.27,8.22003815]
[1735547414644,8.22003815,193.33,193.27,2.5915]
[1735547414849,8.22003815,193.33,193.25,8.22003815]
[1735547415245,3.0,193.39,193.28,2.5914]
[1735547415445,8.22003815,193.33,193.28,2.5914]
[1735547415839,8.22003815,193.33,193.25,8.22003815]
[1735547416039,3.0,193.39,193.26,2.5916]
[1735547416040,8.22003815,193.31,193.26,2.5916]
[1735547418457,8.22003815,193.31,193.25,2.5918]
[1735547419649,8.22003815,193.31,193.23,8.22003815]
[1735547419849,8.22003815,193.31,193.25,8.22003815]
[1735547420255,8.22003815,193.31,193.26,2.5916]
[1735547420447,8.22003815,193.31,193.25,8.22003815]
[1735547420649,8.22003815,193.31,193.22,4.585]
[1735547421048,8.22003815,193.31,193.25,2.5918]
[1735547422553,8.22003815,193.29,193.23,2.592]
[1735547422753,8.22003815,193.27,193.23,2.592]
[1735547422947,8.22003815,193.27,193.22,1.585]
[1735547423155,3.0,193.29,193.21,1.5719]
[1735547423456,8.22003815,193.25,193.2,8.22003815]
[1735547423657,8.22003815,193.25,193.17,1.4598]
[1735547423854,8.22003815,193.25,193.17,8.22003815]
[1735547424051,8.22003815,193.23,193.16,50.38986537]
[1735547424451,8.22003815,193.21,193.16,2.5929]
[1735547425359,8.22003815,193.21,193.14,8.22003815]
[1735547425554,8.22003815,193.21,193.17,2.5929]
[1735547426158,8.22003815,193.21,193.14,8.22003815]
[1735547426355,3.0,193.24,193.16,8.22003815]
[1735547426655,8.22003815,193.23,193.16,8.22003815]
[1735547427255,8.22003815,193.21,193.16,10.81293815]
[1735547427661,8.22003815,193.21,193.16,2.5929]
[1735547429560,8.22003815,193.21,193.16,2.593]
[1735547431264,8.22003815,193.19,193.16,2.593]
[1735547431759,8.22003815,193.17,193.09,2.9217]
[1735547431958,8.22003815,193.15,193.09,11.14173815]
[1735547432457,8.22003815,193.13,193.09,2.9217]
[1735547432853,3.0,193.19,193.1,2.5938]
[1735547433055,8.22003815,193.14,193.1,2.5938]
[1735547433253,8.22003815,193.14,193.09,2.9217]
[1735547433454,8.22003815,193.14,193.09,5.5156]
[1735547433658,8.22003815,193.12,193.07,1.5692]
[1735547433863,8.22003815,193.12,193.05,11.22003815]
[1735547434060,8.22003815,193.12,193.08,2.5941]
[1735547434764,8.22003815,193.12,193.07,8.22003815]
[1735547434962,8.22003815,193.12,193.1,2.5938]
[1735547435864,8.22003815,193.14,193.1,2.5938]
[1735547436266,8.22003815,193.12,193.1,2.5938]
[1735547436466,8.22003815,193.12,193.08,2.5941]
[1735547436763,8.22003815,193.12,193.04,58.63572402]
[1735547436962,37.02016913,193.28,193.04,58.63572402]
[1735547436963,8.22003815,193.1,193.04,1.5558]
[1735547437266,8.22003815,193.06,192.92,27.99410327]
[1735547437460,8.22003815,193.04,192.93,4.5868]
[1735547437663,8.22003815,193.04,192.99,2.5952]
[1735547437863,8.22003815,193.04,192.97,8.22003815]
[1735547438666,3.0,193.07,193.0,2.5951]
[1735547438867,8.22003815,193.04,192.97,8.22003815]
[1735547439170,8.22003815,193.06,192.99,8.22003815]
[1735547439366,166.40294997,193.25,193.01,8.22003815]
[1735547439570,8.22003815,193.07,193.01,8.22003815]
[1735547440173,24.1721038,193.21,193.06,2.5944]
[1735547440375,8.22003815,193.08,193.06,2.5944]
[1735547440570,8.22003815,193.08,193.02,1.5405]
[1735547441269,8.22003815,193.08,193.05,2.5944]
[1735547441464,8.22003815,193.08,193.02,1.5405]
[1735547442472,8.22003815,193.1,193.03,8.22003815]
[1735547442676,2.65193467,193.21,193.05,8.22003815]
[1735547442877,8.22003815,193.16,193.09,8.22003815]
[1735547443179,3.0,193.22,193.11,8.22003815]
[1735547443385,3.0,193.22,193.12,1.5113]
[1735547443671,8.22003815,193.19,193.16,2.593]
[1735547443872,8.22003815,193.19,193.13,8.22003815]
[1735547444277,8.22003815,193.19,193.15,2.5931]
[1735547445169,8.22003815,193.19,193.12,1.5113]
[1735547445377,8.22003815,193.19,193.14,2.5933]
[1735547446076,8.22003815,193.17,193.12,4.1047]
[1735547446276,8.22003815,193.17,193.12,1.5113]
[1735547447278,8.22003815,193.17,193.13,2.5934]
[1735547447478,8.22003815,193.17,193.1,3.015]
[1735547447973,8.22003815,193.15,193.1,4.0842]
[1735547448577,8.22003815,193.17,193.14,2.5933]
[1735547448783,8.22003815,193.19,193.11,8.22003815]
[1735547449274,8.22003815,193.19,193.15,2.593]
[1735547449682,8.22003815,193.19,193.11,8.22003815]
[1735547449877,2.65041996,193.32,193.13,8.22003815]
[1735547450081,3.78496787,193.31,193.15,8.22003815]
[1735547450283,8.22003815,193.23,193.17,8.22003815]
[1735547450476,8.22003815,193.23,193.21,2.5923]
[1735547450780,3.0,193.27,193.21,2.5923]
[1735547450982,8.22003815,193.24,193.21,2.5923]
[1735547451181,8.22003815,193.24,193.22,2.5922]
[1735547451379,8.22003815,193.24,193.18,1.6154]
[1735547451787,8.22003815,193.26,193.19,8.22003815]
[1735547452279,12.88408786,193.27,193.21,2.5923]
[1735547453781,12.88408786,193.27,193.18,1.6154]
[1735547453974,3.0,193.28,193.18,1.6154]
[1735547454181,12.88408786,193.24,193.16,1.6122]
[1735547454578,12.88408786,193.21,193.13,2.5933]
[1735547454777,15.88408786,193.21,193.13,2.5933]
[1735547457480,12.88408786,193.18,193.11,4.0524]
[1735547458082,12.88408786,193.18,193.11,1.4588]
[1735547458979,12.88408786,193.18,193.11,4.0525]
[1735547460683,12.88408786,193.18,193.12,2.5935]
[1735547460886,12.88408786,193.18,193.11,1.4588]
[1735547461085,15.88408786,193.21,193.11,1.4588]
[1735547462285,12.88408786,193.21,193.11,1.4588]
[1735547462483,12.88408786,193.21,193.12,1.6136]
[1735547462688,12.88408786,193.21,193.13,3.0]
[1735547463983,12.88408786,193.21,193.11,1.4588]
[1735547464388,12.88408786,193.21,193.13,2.5934]
[1735547464584,12.88408786,193.21,193.11,1.4588]
[1735547465189,12.88408786,193.21,193.15,2.593]
[1735547465691,12.88408786,193.21,193.15,2.5931]
[1735547465891,12.88408786,193.21,193.11,1.4588]
[1735547466092,12.88408786,193.18,193.11,1.4588]
[1735547466494,12.88408786,193.18,193.11,4.0525]
[1735547467291,12.88408786,193.18,193.11,1.4588]
[1735547468187,12.88408786,193.18,193.11,4.0525]
[1735547469694,12.88408786,193.18,193.13,2.5934]
[1735547469890,12.88408786,193.18,193.11,1.4588]
[1735547470998,12.88408786,193.18,193.13,2.5934]
[1735547471195,12.88408786,193.18,193.11,1.4588]
[1735547471494,15.88408786,193.18,193.1,2.5938]
[1735547472497,15.88408786,193.18,193.11,2.5936]
[1735547472795,15.88408786,193.18,193.07,1.6136]
[1735547472992,12.88408786,193.15,193.07,2.5941]
[1735547474492,12.88408786,193.15,193.06,1.5787]
[1735547474693,12.88408786,193.15,193.08,2.594]
[1735547475693,12.88408786,193.12,192.95,7.06156561]
[1735547475898,15.88408786,193.12,193.04,2.5945]
[1735547476894,15.88408786,193.12,192.97,63.47652761]
[1735547476895,12.88408786,193.09,192.97,63.47652761]
[1735547477093,12.88408786,193.09,192.97,48.8808125]
[1735547477290,12.88408786,193.06,192.97,48.8808125]
[1735547477590,12.88408786,193.06,192.96,4.4116]
[1735547479395,12.88408786,193.06,192.98,2.5954]
[1735547480592,12.88408786,193.06,192.97,2.5956]
[1735547482003,12.88408786,193.03,192.95,2.5957]
[1735547482397,3.0,193.02,192.91,3.0]
[1735547483204,12.88408786,193.0,192.94,2.5959]
[1735547483405,12.88408786,193.0,192.91,3.0]
[1735547483598,12.88408786,193.0,192.9,3.1248]
[1735547484198,12.88408786,193.0,192.92,2.5962]
[1735547484898,12.88408786,193.0,192.93,2.5961]
[1735547485103,12.88408786,193.0,192.87,4.4685]
[1735547485306,12.88408786,193.0,192.88,15.91948786]
[1735547485905,12.88408786,193.0,192.88,18.91948786]
[1735547486298,12.88408786,193.0,192.88,15.91948786]
[1735547487902,12.88408786,193.0,192.92,2.5962]
[1735547488103,12.88408786,193.0,192.88,15.91948786]
[1735547489404,12.88408786,193.0,192.92,2.5962]
[1735547490810,12.88408786,193.0,192.88,15.91948786]
[1735547491017,12.88408786,192.97,192.9,2.5965]
[1735547491506,12.88408786,192.97,192.88,3.0354]
[1735547491804,12.88408786,192.97,192.92,2.5962]
[1735547492211,8.26987718,192.96,192.92,2.5962]
[1735547492613,8.26987718,192.94,192.88,3.0354]
[1735547494109,8.26987718,192.94,192.89,2.5965]
[1735547494309,8.26987718,192.94,192.88,3.0354]
[1735547495215,8.26987718,192.94,192.9,2.5964]
[1735547496407,8.26987718,192.94,192.88,3.0354]
[1735547496602,8.26987718,192.94,192.91,2.5963]
[1735547497407,8.26987718,192.94,192.88,3.0354]
[1735547498208,8.26987718,192.94,192.92,2.5962]
[1735547499717,8.26987718,192.94,192.9,2.5964]
[1735547500108,8.26987718,192.94,192.88,3.0354]
[1735547500311,8.26987718,192.94,192.89,2.5966]
[1735547500508,8.26987718,192.92,192.89,2.5966]
[1735547500716,8.26987718,192.92,192.86,8.26987718]
[1735547500914,8.26987718,192.92,192.84,11.26987718]
[1735547501410,8.26987718,192.88,192.79,4.7076]
[1735547501607,8.26987718,192.86,192.79,4.7076]
[1735547501807,3.0,192.92,192.8,8.26987718]
[1735547502008,8.26987718,192.87,192.8,8.26987718]
[1735547503422,8.26987718,192.87,192.82,2.5976]
[1735547504018,8.26987718,192.87,192.82,8.26987718]
[1735547504219,8.26987718,192.89,192.82,8.26987718]
[1735547504620,21.52016913,193.04,192.82,8.26987718]
[1735547504814,8.26987718,192.91,192.84,8.26987718]
[1735547505320,8.26987718,192.89,192.82,8.26987718]
[1735547506417,8.26987718,192.89,192.84,2.5973]
[1735547506617,8.26987718,192.89,192.82,8.26987718]
[1735547507017,3.0,192.94,192.85,2.5971]
[1735547507213,3.0,192.94,192.82,8.26987718]
[1735547507425,8.26987718,192.89,192.82,8.26987718]
[1735547507923,8.26987718,192.89,192.85,2.5971]
[1735547508526,8.26987718,192.87,192.79,4.7076]
[1735547508732,8.26987718,192.85,192.79,4.7076]
[1735547509730,8.26987718,192.85,192.82,2.5975]
[1735547510128,8.26987718,192.85,192.79,4.7076]
[1735547510527,21.52016913,193.03,192.8,8.26987718]
[1735547510724,8.26987718,192.87,192.8,8.26987718]
[1735547512330,8.26987718,192.87,192.83,2.5973]
[1735547513533,8.26987718,192.87,192.8,8.26987718]
[1735547513837,8.26987718,192.87,192.84,2.5973]
[1735547514331,8.26987718,192.87,192.8,8.26987718]
[1735547514931,8.26987718,192.87,192.85,2.5971]
[1735547515829,8.26987718,192.87,192.86,2.5971]
[1735547516029,3.0,192.92,192.82,8.26987718]
[1735547516224,8.26987718,192.89,192.82,8.26987718]
[1735547516837,8.26987718,192.87,192.79,8.26987718]
[1735547517537,8.26987718,192.85,192.79,8.26987718]
[1735547518431,8.26987718,192.85,192.83,2.5974]
[1735547518627,8.26987718,192.85,192.79,8.26987718]
[1735547518830,8.26987718,192.87,192.8,3.1735]
[1735547519236,8.26987718,192.87,192.86,2.5971]
[1735547519635,8.26987718,192.88,192.82,8.26987718]
[1735547520233,8.26987718,192.88,192.87,2.5969]
[1735547521138,8.26987718,192.9,192.89,2.5967]
[1735547524442,8.26987718,192.9,192.82,8.26987718]
[1735547524742,8.26987718,192.88,192.81,11.26987718]
[1735547525132,8.26987718,192.88,192.85,2.5974]
[1735547525335,8.26987718,192.88,192.8,14.44337718]
[1735547525540,8.26987718,192.88,192.81,8.26987718]
[1735547525838,8.26987718,192.86,192.8,3.1735]
[1735547527143,8.26987718,192.86,192.84,2.5974]
[1735547528144,8.26987718,192.86,192.8,11.44337718]
[1735547529138,8.26987718,192.86,192.84,2.5974]
[1735547529338,8.26987718,192.86,192.8,3.1735]
[1735547529543,8.26987718,192.84,192.8,3.1735]
[1735547530142,8.26987718,192.84,192.83,2.5977]
[1735547531850,8.26987718,192.84,192.81,2.5978]
[1735547532747,8.26987718,192.84,192.8,3.1735]
[1735547532948,8.26987718,192.84,192.82,2.5978]
[1735547533349,8.26987718,192.84,192.81,2.5979]
[1735547534349,8.26987718,192.84,192.8,3.1735]
[1735547534350,8.26987718,192.84,192.82,2.5978]
[1735547535155,8.26987718,192.84,192.82,2.5977]
[1735547535355,8.26987718,192.84,192.76,3.0]
[1735547535544,8.26987718,192.84,192.76,11.26987718]
[1735547535749,8.26987718,192.84,192.81,2.5979]
[1735547538553,21.52016913,192.91,192.8,8.26987718]
[1735547538853,8.26987718,192.88,192.8,8.26987718]
[1735547539055,8.26987718,192.88,192.81,3.1386]
[1735547539753,8.26987718,192.88,192.76,3.0]
[1735547539954,8.26987718,192.88,192.82,8.26987718]
[1735547540749,8.26987718,192.89,192.87,2.597]
[1735547541153,8.26987718,192.89,192.81,3.0]
[1735547541351,8.26987718,192.87,192.84,2.5975]
[1735547541652,8.26987718,192.87,192.81,3.0]
[1735547542959,8.26987718,192.87,192.85,2.5973]
[1735547543155,8.26987718,192.87,192.8,8.26987718]
[1735547543358,21.52016913,192.94,192.8,8.26987718]